Workbook

Sheet DatiGen
L2: ACPM | M2: V.ne | N2: 2024.1.0
B4: Lavori di | Q4: Tecnico Asseveratore
B5: Sostituzione impianto termico nel comune di XXXXXXXXXX - Via xxxxxxxxxx, 70 al Fg.xx - Mapp.xxx | Q5: Titolo | S5: Ingegnere | Y5: abbr. | Z5: Ing.
Q6: Cognome | V6: Nome
Q7: Indirizzo
B8: Titolo Abilitativo | D8: CILA Prot. N. 000000000 del 29/09/2023 | Q8: Città
Q9: Nato a | V9: il
B10: Fornitore / Ditta | Q10: Residente a | V10: Indirizzo
B11: Rag. Sociale | Q11: Codice Fiscale | V11: P.Iva
B12: Indirizzo | Q12: Albo / N.Iscrizione | S12: Ordine degli Ingegneri della provincia di XXXXXXX | Y12: N.
B13: Città | Q13: Mail / PEC
B14: Codice Fiscale | I14: P.Iva | Q14: Polizza Professionale | X14: Scadenza | Y14: 2025-06-01
Q15: Compagnia Assicurat. | X15: Massimale | Y15: 1500000
B16: Committente | P16: TRUE
B17: Cognome Nome | P17: 1 | Q17: Versione Demo
B18: Nato a | I18: il | Q18: nActivate= 4 on PC: "PC-MARIO3"
B19: Residente a | I19: Indirizzo | Q19: Acquista ACPM
B20: Codice Fiscale | I20: Tel./Mail | Q20: https://www.madosoft.it/prodotti/superbonus/spesa-detraibile-ammessa/asseverazione-congruita-spese
B22: Immobile
B23: Tipologia | D23: Unità Immobiliare
B24: Indirizzo
B25: Città
B26: Dati Catastali: FOGLIO | D26: 12 | F26: P.LLA | H26: 533 | I26: SUB. | L26: CAT.
B28: Tipologia Intervento
B29: Impianti di riscaldamento con caldaie ad acqua a condensazione e/o generatori di aria calda a condensazione Pnom>35kWt
B30: Superf. Riscaldata mq. | D30: 120 | F30: TRUE | I30: TRUE | L30: FALSE
B31: Fornitura della caldaia, canna fumaria e, ove previsto, sistema di termoregolazione evoluti, sistema di pompaggio, sistema di trattamento dell’acqua, componentistica dell’impianto idraulico ed elettrico, compresi serbatoi di accumulo, etc.
B32: Potenza nominale | C32: kWt | D32: 24 | F32: Spesa Ammissibile DL.34/2020 e smi : | M32: 30000
B34: Riferimento Prezzi | D34: Prezzario DEI 2024- Impianti tecnologici
B36: Spese specifiche | L36: =L40/I40 -> 0.1
B37: Fattura per Fornitura e posa N. | E37: 288 | F37: del | G37: 2023-11-27 | H37: Importo | I37: =ImportoComputo_FP+ImportoComputo_SicFP -> 6782.4 | K37: IVA | L37: =I37*0.1 -> 678.24 | M37: Totale | N37: =I37+L37 -> 7460.64
N38: =I38+L38 -> 0
N39: =I39+L39 -> 0
H40: Sommano: | I40: =SUM(I37:J39) -> 6782.4 | K40: IVA | L40: =SUM(L37:L39) -> 678.24 | M40: Totale | N40: =SUM(N37:N39) -> 7460.64
B41: Spese Tecniche: | E41: Imponibile | G41: 0 | H41: Aliq. Iva | I41: 0.22 | J41: IVA | L41: =G41*I41 -> 0 | M41: Totale | N41: =G41+L41 -> 0
N42: =G42+L42 -> 0
N43: =G43+L43 -> 0
E44: Sommano: | G44: =SUM(G41:G43) -> 0 | H44: Aliq. Iva | I44: =SUM(I41:I43)/3 -> 0.07333333333 | J44: IVA | L44: =SUM(L41:L43) -> 0 | M44: Totale | N44: =SUM(N41:N43) -> 0
Q45: Versione Demo

Sheet Computo Metrico
A2: =CONCATENATE("ACPM Vers.",Versione," ©2022 SIM srl") -> ACPM Vers.2024.1.0 ©2022 SIM srl | B2: COMPUTO METRICO | M2: Incidenza Manodopera | N2: Fornitura e Posa | O2: Altro / Opere complementari | P2: Opere Installazione / Oneri Sicurezza | S2: Importo Manodopera | T2: Importo Fornitura e Posa | U2: Importo Altre Opere | V2: Importo Sicurezza | X2: Manopera Voci Fornitura e Posa | Y2: Manopera Voci Altro | Z2: Manopera Voci Sicurezza
B3: =IF(DatiGen!B5<>"",CONCATENATE("Lavori di ",DatiGen!B5),"") -> Lavori di Sostituzione impianto termico nel comune di XXXXXXXXXX - Via xxxxxxxxxx, 70 al Fg.xx - Mapp.xxx
B4: =IF(DatiGen!B6<>"",DatiGen!B6,"") -> 
B5: =IF(DatiGen!B7<>"",DatiGen!B7,"") -> 
B6: =DatiGen!B28 -> Tipologia Intervento | C6: =DatiGen!B29 -> Impianti di riscaldamento con caldaie ad acqua a condensazione e/o generatori di aria calda a condensazione Pnom>35kWt | K6: =CONCATENATE(DatiGen!B32," ",DatiGen!C32) -> Potenza nominale kWt | L6: =IF(nLicenza="Versione Demo",1000,DatiGen!D32) -> 1000
B7: =DatiGen!B16 -> Committente | C7: =DatiGen!D17 -> 0
B8: =DatiGen!Q4 -> Tecnico Asseveratore | C8: =CONCATENATE(DatiGen!Z5," ", DatiGen!S6, " ", DatiGen!W6) -> Ing.
C9: =CONCATENATE(DatiGen!S7," , ",DatiGen!S8) -> ,
C10: =CONCATENATE("Iscritto a : ",DatiGen!S12) -> Iscritto a : Ordine degli Ingegneri della provincia di XXXXXXX
B11: Tariffa | C11: Descrizione | I11: U.M. | J11: Quantità | K11: Prezzo Un. | L11: Prezzo
B12: ='Listino Base'!B3 -> 025015a | C12: Caldaia | I12: ='Listino Base'!E3 -> cad | J12: 1 | K12: ='Listino Base'!F3 -> 2269.62 | L12: =J12*K12 -> 2269.62 | M12: 0.25 | N12: TRUE | O12: FALSE | P12: FALSE | R12: =IF(SUM(T12:V12)<>L12,"Indicare ▣ 1 voce","") ->  | S12: =M12*L12 -> 567.405 | T12: =IF(N12=TRUE,L12,0) -> 2269.62 | U12: =IF(O12=TRUE,L12,0) -> 0 | V12: =IF(P12=TRUE,L12,0) -> 0 | X12: =IF(N12=TRUE,L12*M12,0) -> 567.405 | Y12: =IF(O12=TRUE,L12*M12,0) -> 0 | Z12: =IF(P12=TRUE,L12*M12,0) -> 0
B13: ='Listino Base'!B4 -> 21.01.25 | C13: Accumulo ACS | I13: ='Listino Base'!E4 -> cad | J13: 1 | K13: ='Listino Base'!F4 -> 821.47 | L13: =K13*J13 -> 821.47 | M13: 0.22 | N13: TRUE | O13: FALSE | P13: FALSE | R13: =IF(SUM(T13:V13)<>L13,"Indicare ▣ 1 voce","") ->  | S13: 180.7234 | T13: 821.47 | U13: 0 | V13: 0 | X13: 180.7234 | Y13: 0 | Z13: 0
B14: ='Listino Base'!B5 -> N.P.001.080 | C14: Condotto flessibile in PPS da 80mm per scarico fumi completo di accessori | I14: cad | J14: 6 | K14: ='Listino Base'!F5 -> 68.87 | L14: =K14*J14 -> 413.22 | M14: 0.22 | N14: TRUE | O14: FALSE | P14: FALSE | S14: 90.9084 | T14: 413.22 | U14: 0 | V14: 0 | X14: 90.9084 | Y14: 0 | Z14: 0
B15: ='Listino Base'!B6 -> 025214c | C15: Radiatori tubolari | I15: cad | J15: 4 | K15: ='Listino Base'!F6 -> 556.06 | L15: =K15*J15 -> 2224.24 | M15: 0.08 | N15: TRUE | O15: FALSE | P15: FALSE | S15: 177.9392 | T15: 2224.24 | U15: 0 | V15: 0 | X15: 177.9392 | Y15: 0 | Z15: 0
B16: ='Listino Base'!B7 -> 025090b | C16: ='Listino Base'!D7 -> Tubi in rame coibentato sottotraccia per riscaldamento | I16: m | J16: 50 | K16: ='Listino Base'!F7 -> 8.65 | L16: =K16*J16 -> 432.5 | M16: 0.39 | N16: TRUE | O16: FALSE | P16: FALSE | S16: 168.675 | T16: 432.5 | U16: 0 | V16: 0 | X16: 168.675 | Y16: 0 | Z16: 0
B17: ='Listino Base'!B8 -> 015024d | C17: ='Listino Base'!D8 -> Tubi in rame a vista per riscaldamento | I17: m | J17: 4 | K17: ='Listino Base'!F8 -> 27.53 | L17: 110.12 | M17: 0.34 | N17: TRUE | O17: FALSE | P17: FALSE | S17: 37.4408 | T17: 110.12 | U17: 0 | V17: 0 | X17: 37.4408 | Y17: 0 | Z17: 0
B18: ='Listino Base'!B9 -> 025100a | C18: ='Listino Base'!D9 -> Coibentazione Tubi rame a vista per riscaldamento | I18: cad | J18: 4 | K18: ='Listino Base'!F9 -> 11.14 | L18: 44.56 | M18: 0.63 | N18: TRUE | O18: FALSE | P18: FALSE | S18: 28.0728 | T18: 44.56 | U18: 0 | V18: 0 | X18: 28.0728 | Y18: 0 | Z18: 0
B19: ='Listino Base'!B10 -> 025110b | C19: Collettore di distribuzione riscaldamento | I19: cad | J19: 1 | K19: ='Listino Base'!F10 -> 466.67 | L19: 466.67 | M19: 0.15 | N19: TRUE | O19: FALSE | P19: FALSE | S19: 70.0005 | T19: 466.67 | U19: 0 | V19: 0 | X19: 70.0005 | Y19: 0 | Z19: 0
B20: A25026b | C20: Fori per carotaggi linea gas e riscaldamento | I20: cad | J20: =2*J13 -> 2 | K20: ='Listino Base'!F11 -> 267.18 | L20: 534.36 | M20: 0.82 | N20: FALSE | O20: TRUE | P20: FALSE | S20: 438.1752 | T20: 0 | U20: 534.36 | V20: 0 | X20: 0 | Y20: 438.1752 | Z20: 0
B21: 015203c | C21: Tubo linea gas in rame | I21: m | J21: 20 | K21: ='Listino Base'!F12 -> 19.79 | L21: =J21*K21 -> 395.8 | M21: 0.22 | N21: FALSE | O21: TRUE | P21: FALSE | S21: 87.076 | T21: 0 | U21: 395.8 | V21: 0 | X21: 0 | Y21: 87.076 | Z21: 0
B22: 015212a | C22: ='Listino Base'!D13 -> Valvole linea gas | I22: cad | J22: 2 | K22: ='Listino Base'!F13 -> 120.89 | L22: =J22*K22 -> 241.78 | M22: 0.24 | N22: FALSE | O22: TRUE | P22: FALSE | S22: 58.0272 | T22: 0 | U22: 241.78 | V22: 0 | X22: 0 | Y22: 58.0272 | Z22: 0
B23: ='Listino Base'!B14 -> 015032b | C23: ='Listino Base'!D14 -> Riduttore di pressione gas | I23: cad | J23: 1 | K23: ='Listino Base'!F14 -> 113.32 | L23: =J23*K23 -> 113.32 | M23: 0.2 | N23: FALSE | O23: TRUE | P23: FALSE | S23: 22.664 | T23: 0 | U23: 113.32 | V23: 0 | X23: 0 | Y23: 22.664 | Z23: 0
B24: ='Listino Base'!B15 -> A25038b | C24: ='Listino Base'!D15 -> Scavo tracce per passaggio tubazioni riscaldamento | I24: m | J24: 50 | K24: ='Listino Base'!F15 -> 30.59 | L24: =K24*J24 -> 1529.5 | M24: 0.91 | N24: FALSE | O24: TRUE | P24: FALSE | S24: 1391.845 | T24: 0 | U24: 1529.5 | V24: 0 | X24: 0 | Y24: 1391.845 | Z24: 0
J25: 0 | K25: ='Listino Base'!F16 -> 0 | L25: 0 | N25: FALSE | O25: FALSE | S25: 0 | T25: 0 | U25: 0 | V25: 0 | X25: 0 | Y25: 0 | Z25: 0
J26: 0 | K26: ='Listino Base'!F17 -> 0 | L26: 0 | N26: FALSE | O26: FALSE | S26: 0 | T26: 0 | U26: 0 | V26: 0 | X26: 0 | Y26: 0 | Z26: 0
J27: 0 | K27: ='Listino Base'!F18 -> 0 | L27: 0 | N27: FALSE | O27: FALSE | S27: 0 | T27: 0 | U27: 0 | V27: 0 | X27: 0 | Y27: 0 | Z27: 0
J28: 0 | K28: ='Listino Base'!F19 -> 0 | L28: 0 | N28: FALSE | O28: FALSE | P28: FALSE | S28: 0 | T28: 0 | U28: 0 | V28: 0 | X28: 0 | Y28: 0 | Z28: 0
J29: 0 | K29: ='Listino Base'!F20 -> 0 | L29: 0 | N29: FALSE | O29: FALSE | P29: FALSE | S29: 0 | T29: 0 | U29: 0 | V29: 0 | X29: 0 | Y29: 0 | Z29: 0
J30: 0 | K30: ='Listino Base'!F21 -> 0 | L30: 0 | N30: FALSE | O30: FALSE | P30: FALSE | S30: 0 | T30: 0 | U30: 0 | V30: 0 | X30: 0 | Y30: 0 | Z30: 0
J31: 0 | K31: ='Listino Base'!F22 -> 0 | L31: 0 | N31: FALSE | O31: FALSE | P31: FALSE | S31: 0 | T31: 0 | U31: 0 | V31: 0 | X31: 0 | Y31: 0 | Z31: 0
J32: 0 | K32: 0 | L32: 0 | N32: FALSE | O32: FALSE | P32: FALSE | S32: 0 | T32: 0 | U32: 0 | V32: 0 | X32: 0 | Y32: 0 | Z32: 0
J33: 0 | K33: 0 | L33: 0 | N33: FALSE | O33: FALSE | P33: FALSE | S33: 0 | T33: 0 | U33: 0 | V33: 0 | X33: 0 | Y33: 0 | Z33: 0
J34: 0 | K34: 0 | L34: 0 | N34: FALSE | O34: FALSE | P34: FALSE | S34: 0 | T34: 0 | U34: 0 | V34: 0 | X34: 0 | Y34: 0 | Z34: 0
J35: 0 | K35: 0 | L35: 0 | N35: FALSE | O35: FALSE | P35: FALSE | S35: 0 | T35: 0 | U35: 0 | V35: 0 | X35: 0 | Y35: 0 | Z35: 0
J36: 0 | K36: 0 | L36: 0 | N36: FALSE | O36: FALSE | P36: FALSE | S36: 0 | T36: 0 | U36: 0 | V36: 0 | X36: 0 | Y36: 0 | Z36: 0
J37: 0 | K37: 0 | L37: 0 | N37: FALSE | O37: FALSE | P37: FALSE | S37: 0 | T37: 0 | U37: 0 | V37: 0 | X37: 0 | Y37: 0 | Z37: 0
J38: 0 | K38: 0 | L38: 0 | N38: FALSE | O38: FALSE | P38: FALSE | S38: 0 | T38: 0 | U38: 0 | V38: 0 | X38: 0 | Y38: 0 | Z38: 0
J39: 0 | K39: 0 | L39: 0 | N39: FALSE | O39: FALSE | P39: FALSE | S39: 0 | T39: 0 | U39: 0 | V39: 0 | X39: 0 | Y39: 0 | Z39: 0
J40: 0 | K40: 0 | L40: 0 | N40: FALSE | O40: FALSE | P40: FALSE | S40: 0 | T40: 0 | U40: 0 | V40: 0 | X40: 0 | Y40: 0 | Z40: 0
L41: =SUM(L12:L40) -> 9597.16 | S41: =SUM(S12:S40) -> 3318.9525 | T41: =SUM(T12:T40) -> 6782.4 | U41: 2814.76 | V41: 0 | X41: =SUM(X12:X40) -> 1321.1651 | Y41: 1997.7874 | Z41: 0
B43: Riepilogo Computo Metrico
D45: Sommano i Lavori : | E45: =L41 -> 9597.16 | F45: è | G45: di cui | I45: Importo | K45: Materiale | L45: Manodopera | M45: Opere Installaz./Sicurezza
C46: IVA | D46: 0.1 | E46: =E45*D46 -> 959.716 | G46: Fornitura e Posa | I46: =T41 -> 6782.4 | K46: =I46-L46 -> 5461.2349 | L46: =X41 -> 1321.1651 | M46: =V41*I46/(E45-V41) -> 0
D47: Totale : | E47: =SUM(E45:E46) -> 10556.876 | G47: Altro / Opere Complementari | I47: =U41 -> 2814.76 | K47: =I47-L47 -> 816.9726 | L47: =Y41 -> 1997.7874 | M47: =V41*I47/(E45-V41) -> 0
G48: Opere Installazione/Oneri Sicurezza x Fornitura e Posa | I48: =M46 -> 0 | K48: =I48-L48 -> 0 | L48: =IF(V41<>0,Z41*I48/V41,0) -> 0
C49: Spese Tecniche : imponibile | E49: =DatiGen!G44 -> 0 | G49: Opere Installazione/Oneri Sicurezza x Altro/Complem. | I49: =M47 -> 0 | K49: =I49-L49 -> 0 | L49: =IF(V41<>0,Z41*I49/V41,0) -> 0
C50: IVA | E50: =DatiGen!L44 -> 0 | I50: =SUM(I46:J49) -> 9597.16 | K50: =SUM(K46:K47) -> 6278.2075 | L50: =SUM(L46:L47) -> 3318.9525 | M50: =SUM(M46:P49) -> 0
D51: Totale | E51: =SUM(E49:E50) -> 0 | I51: =IF(M50<>V41,"Attenzione! Opere Installazione/Oneri Sicurezza Non Ripartiti correttamente","") -> 
D53: Importo Complessivo : | E53: =IF(nLicenza="Versione Demo",-10,TotaleSpeseTecniche+TotaleLavori) -> -10

Sheet Controlli
B2: =DatiGen!B5 -> Sostituzione impianto termico nel comune di XXXXXXXXXX - Via xxxxxxxxxx, 70 al Fg.xx - Mapp.xxx
B3: Committente | C3: =DatiGen!D17 -> 0 | F3: =CONCATENATE(DatiGen!K19," ",DatiGen!D19) -> 
B5: VERIFICA 1 - Attestazione per Fornitura e Posa" | G5: Ditta: | H5: =CONCATENATE(DatiGen!D11," - ",DatiGen!D13) -> -
A7: =CONCATENATE("ACPM Vers.",Versione," ©2022 SIM srl") -> ACPM Vers.2024.1.0 ©2022 SIM srl
B15: CONTROLLO 1 - Opera Compiuta / Prezzario | N15: Importo Netto
B16: =CONCATENATE("Importo Opera Compiuta (Computo Metrico) determinato con ",IF(DatiGen!D34<>"",DatiGen!D34," ??")) -> Importo Opera Compiuta (Computo Metrico) determinato con Prezzario DEI 2024- Impianti tecnologici | N16: ='Computo Metrico'!E45 -> 9597.16 | Q16: =IF(DatiGen!D34<>"","☺","🙁") -> ☺ | R16: =IF(DatiGen!D34<>"","","Specificare Prezzari di Riferimento in DatiGen cella D20") -> 
B18: CONTROLLO 2 - DM. Costi Massimi | N18: Importo Netto
B19: Costo dei Beni Allegato A (fornitura) | F19: 216 | G19: =CONCATENATE("/",DatiGen!$C$32) -> /kWt | H19: + 180,00 €./mq. x mq.120,00 | N19: 21600
B20: Opere relative alla installazione (sicurezza) | F20: =IF('Computo Metrico'!L6<>0,'Computo Metrico'!I48/'Computo Metrico'!L6,0) -> 0 | G20: =G19 -> /kWt
B21: Manodopera per l'installazione | F21: =IF('Computo Metrico'!L6<>0,'Computo Metrico'!L46/'Computo Metrico'!L6,0) -> 1.3211651 | G21: =G19 -> /kWt
F22: =SUM(F19:F21) -> 217.3211651 | G22: =G19 -> /kWt | H22: =CONCATENATE("x ",DatiGen!C32) -> x kWt | I22: =DatiGen!D32 -> 24 | N22: =IF(N19<>"",F22*I22+N19,F22*I22) -> 26815.70796 | Q22: =IF(N22>=SUM('Computo Metrico'!K46:P46),"☺","<") -> ☺ | R22: =IF(Q22="<","Importo da computo per Fornitura e Posa (Materiale+Manodopera+Sicurezza) =","") ->  | Z22: =IF(Q22="<",SUM('Computo Metrico'!K46:P46),"") -> 
B24: CONTROLLO 3 - Spesa Sostenuta | N24: Importo Netto
B25: =DatiGen!B37 -> Fattura per Fornitura e posa N. | D25: =IF(DatiGen!E37<>"",DatiGen!E37,"") -> 288 | E25: del | F25: =IF(DatiGen!G37<>"",DatiGen!G37,"") -> 2023-11-27 | G25: Importo | H25: =IF(nLicenza="Versione Demo",100,DatiGen!N37) -> 100 | J25: di cui IVA | L25: =IF(nLicenza="Versione Demo",0,DatiGen!L37) -> 0 | N25: =H25-L25 -> 100
B26: =DatiGen!B38 -> 0 | D26: =IF(DatiGen!E38<>"",DatiGen!E38,"") ->  | E26: del | F26: =IF(DatiGen!G38<>"",DatiGen!G38,"") ->  | G26: Importo | H26: =IF(nLicenza="Versione Demo",100,DatiGen!N38) -> 100 | J26: di cui IVA | L26: =IF(nLicenza="Versione Demo",0,DatiGen!L38) -> 0 | N26: 100
B27: =DatiGen!B39 -> 0 | D27: =IF(DatiGen!E39<>"",DatiGen!E39,"") ->  | E27: del | F27: =IF(DatiGen!G39<>"",DatiGen!G39,"") ->  | G27: Importo | H27: =IF(nLicenza="Versione Demo",100,DatiGen!N39) -> 100 | J27: di cui IVA | L27: =IF(nLicenza="Versione Demo",0,DatiGen!L39) -> 0 | N27: =H27-L27 -> 100
H28: =IF(nLicenza="Versione Demo",100,DatiGen!N40) -> 100 | J28: di cui IVA | L28: =IF(nLicenza="Versione Demo",0,DatiGen!L40) -> 0 | N28: =H28-L28 -> 100 | Q28: =IF(N28=0,"🙁",IF(N28>N16,">","☺")) -> ☺ | R28: =IF(N28=0,"Specificare Importo",IF(N28>N16,"Importo Opera Compiuta da Computo Metrico = ","")) ->  | Z28: =IF(Q28=">",N16,"") -> 
M30: Spesa Massima Ammissibile = MIN(controllo1; controllo2; fattura) | N30: =MIN(N16,N22,N28) -> 100
M32: Quota Fattura per Fornitura e Posa Eccedente Spesa Massima (a Carico del Cliente) | N32: =IF(nLicenza="Versione Demo",0,IF(N28-N30>0,N28-N30,0)) -> 0 | Q32: =IF(N32<>0,"+","") -> 
M33: =IF(N32<>0,"IVA","") ->  | N33: =IF(N32<>0,N32*AliqIvaMed,"") ->  | Q33: =IF(N32<>0,"=","") -> 
N34: =IF(N32<>0,N32+N33,"") -> 
B35: VERIFICA 2 - Asseverazione per Spesa Ammessa"
A36: =CONCATENATE("ACPM Vers.",Versione," ©2022 SIM srl") -> ACPM Vers.2024.1.0 ©2022 SIM srl
B50: Spesa di Intervento | H50: Imponibile | K50: Iva | M50: Importo
B51: Spesa massima ammissibile asseverata . . . . . . . . . . . . . . . . . . . . . . . . . . . . | H51: =N30 -> 100 | K51: =H51*'Computo Metrico'!D46 -> 10 | N51: =H51+K51 -> 110
B52: =IF(nLicenza="Versione Demo",". . . . . . . . . . .","Prestazioni Professionali . . . . . . . . . . . . . . . . . . . . . . . . . . . . . . . . . . . . . . . . .") -> . . . . . . . . . . . | H52: ='Computo Metrico'!E49 -> 0 | K52: ='Computo Metrico'!E50 -> 0 | N52: =H52+K52 -> 0
B53: Altri Costi . . . . . . . . . . . . . . . . . . . . . . . . . . . . . . . . . . . . . . . . . . . . . . . . . . | H53: 0 | K53: 0 | N53: =H53+K53 -> 0
H54: =SUM(H51:I53) -> 100 | K54: =SUM(K51:L53) -> 10 | N54: =SUM(N51:P53) -> 110
L56: Spesa di Intervento - Decreto MITE | M56: SI = | N56: =N54 -> 110
L57: Spesa Massima ammissibile - Norma primaria | M57: SM = | N57: =IF(nLicenza="Versione Demo",0,SpesaAmmessaDL34) -> 0
M58: Spesa detraibile ammissibile = MIN(SI;SM) = | N58: =MIN(N54,N57) -> 0
M60: Importo Complessivo da Computo | N60: =ImportoComplessivo -> -10
M61: Quota da Computo Eccedente Spesa Detraibile Ammissibile (a Carico del Cliente) | N61: =IF(N60-N58>0,N60-N58,0) -> 0

Sheet Attestazione x Fornitura_Posa
B2: ATTESTAZIONE DI CONGRUITA' DELLE SPESE
B3: ex art. 121 comma 1-ter, lett. b) ed art. 119 comma 13 bis DL 34/2020 conv. L. 77/2020 e D.M. Costi Massimi 14/02/2022
B4: (articolo 3 del D.P.R. n. 300/1992 e degli articoli 46 e 47 del D.P.R. n. 445/2000)
B6: Il sottoscritto | E6: =CONCATENATE(AbbrevTitoloTec," ",CognomeTec," ",NomeTec) -> Ing. | I6: , nato a | J6: =PaeseNascTec -> 0 | O6: , il | P6: =DataNascTec -> 00:00:00 | R6: e residente a
B7: =PaeseResTec -> 0 | F7: , in qualità di tecnico asseveratore ex art. 121 comma 1-ter, lett. b) ed art. 119 comma 13 bis DL 34/2020
B8: conv. L. 77/2020 , in relazione agli interventi eseguiti a favore di | J8: =DatiGen!D17 -> 0 | O8: , sull’unità immobiliare sita a
B9: =DatiGen!D25 -> 0 | G9: , in | H9: =DatiGen!D24 -> 0 | L9: e censita al N.C.E.U. del comune di | Q9: =B9 -> 0
B10: al foglio | D10: =DatiGen!D26 -> 12 | E10: p.lla | F10: =DatiGen!H26 -> 533 | G10: sub. | H10: =DatiGen!K26 -> 0 | I10: Categoria | K10: =DatiGen!M26 -> 0 | L10: , relativamente ai lavori di :
B11: =IF(DatiGen!B5<>"",DatiGen!B5,"==========") -> Sostituzione impianto termico nel comune di XXXXXXXXXX - Via xxxxxxxxxx, 70 al Fg.xx - Mapp.xxx
B12: =IF(DatiGen!B6<>"",DatiGen!B6,"==========") -> ==========
B13: =IF(DatiGen!B7<>"",DatiGen!B7,"==========") -> ==========
B14: eseguiti dalla ditta | F14: =DatiGen!D11 -> 0
B15: di cui al titolo abilitativo, | F15: =DatiGen!D8 -> CILA Prot. N. 000000000 del 29/09/2023 | M15: presentato al Comune di | P15: =Q9 -> 0
B16: per l'importo di euro | F16: =Controlli!H28 -> 100 | G16: , di cui alle Fatture N. | J16: =Controlli!D25 -> 288 | L16: del | M16: =Controlli!F25 -> 2023-11-27 | N16: , di €. | O16: =Controlli!H25 -> 100
J17: =Controlli!D26 ->  | L17: del | M17: =Controlli!F26 ->  | N17: , di €. | O17: =Controlli!H26 -> 100
J18: =Controlli!D27 ->  | L18: del | M18: =Controlli!F27 ->  | N18: , di €. | O18: =Controlli!H27 -> 100
B20: consapevole delle implicazioni penali previste dall’articolo 76 del D.P.R. n. 445/2000 e delle conseguenze di cui all’articolo 21 della legge
B21: n. 241/1990 in caso di dichiarazioni mendaci o false attestazioni, ai sensi dell’articolo 3 del D.P.R. n. 300/1992 e degli articoli 46 e 47 del
B22: citato D.P.R. n. 445/2000, sotto la propria responsabilità,
B23: DICHIARA
B24: • | C24: di essere in possesso della qualifica professionale di | I24: =DatiGen!S5 -> Ingegnere | L24: e di essere iscritto all’Albo professionale :
C25: =CONCATENATE(DatiGen!S12," con il numero di matricola ",DatiGen!Z12,";") -> Ordine degli Ingegneri della provincia di XXXXXXX con il numero di matricola ;
B26: • | C26: di essere dotato di idonea copertura assicurativa ai sensi del D.L. 34/2020 convertito nella L.77/2020, ed in particolare di aver stipulato
C27: la polizza professionale | F27: =DatiGen!S14 -> 0 | I27: con scadenza al | L27: =DatiGen!Y14 -> 2025-06-01 | N27: , con la compagnia assicurativa
C28: =DatiGen!S15 -> 0 | L28: con massimale pari a euro | P28: =DatiGen!Y15 -> 1500000
C29: e che la medesima polizza è conforme ai requisiti previsti dal comma 14, del D.L. 34/2020 e s.m.i.;
B30: ATTESTA
B31: 1. i requisiti tecnici sulla base del progetto e dell'effettiva realizzazione;
B32: 2. la congruità delle spese sostenute ed effettivamente realizzate con riferimento all’intervento sopra specificato, precisando che la Spesa
B33: Detraibile Ammessa per la Fornitura e Posa è pari ad EURO | I33: =IF(Controlli!N32>0,Controlli!N30*(1+AliqIvaMed),Controlli!H28) -> 100 | L33: =IF(Controlli!N32>0,", rimanendo a Carico Cliente EURO",".") -> . | Q33: =IF(Controlli!N32>0,Controlli!N34,"") -> 
B34: Ai fini dell'asseverazione della congruità delle spese si è fatto riferimento ai valori massimi per tipologia di intervento determinati con i
B35: criteri previsti dal punto 13, dell’allegato A al Decreto MISE 6 agosto 2020 (c.d. Decreto Requisiti) , emanato in conformità all’art. 119
B36: comma 13, lettera a) DL 34/2020 e s.m.i.
B38: Borgo Valbelluna, 14/08/2024 | M38: In Fede
M40: =CONCATENATE("(",E6,")") -> (Ing. )
B41: Allegati: | S41: =CONCATENATE("ACPM Vers.",Versione," ©2022 SIM srl") -> ACPM Vers.2024.1.0 ©2022 SIM srl
B42: - Computo Metrico
B43: - Calcolo Spesa Detraibile Ammissibile
B49: Ai sensi dell’art. 38, D.P.R. 445 del 28 dicembre 2000, la dichiarazione è resa insieme alla fotocopia, non autenticata del documento di identità del dichiarante

Sheet Asseverazione x Spesa Ammessa
B2: ASSEVERAZIONE DI CONGRUITA' DELLE SPESE
B3: ex art. 121 comma 1-ter, lett. b) ed art. 119 comma 13 bis DL 34/2020 conv. L. 77/2020 e D.M. Costi Massimi 14/02/2022
B4: (articolo 3 del D.P.R. n. 300/1992 e degli articoli 46 e 47 del D.P.R. n. 445/2000)
B6: Il sottoscritto | E6: =CONCATENATE(AbbrevTitoloTec," ",CognomeTec," ",NomeTec) -> Ing. | I6: , nato a | J6: =IF(PaeseNascTec<>"",PaeseNascTec,"") ->  | O6: , il | P6: =IF(DataNascTec<>"",DataNascTec,"") ->  | R6: e residente a
B7: =IF(PaeseResTec<>"",PaeseResTec,"") ->  | F7: , in qualità di tecnico asseveratore ex art. 121 comma 1-ter, lett. b) ed art. 119 comma 13 bis DL 34/2020
B8: conv. L. 77/2020 , in relazione agli interventi eseguiti a favore di | J8: =IF(DatiGen!D17<>"",DatiGen!D17,"") ->  | O8: , sull’unità immobiliare sita a
B9: =IF(DatiGen!D25<>"",DatiGen!D25,"") ->  | G9: , in | H9: =IF(DatiGen!D24<>"",DatiGen!D24,"") ->  | L9: e censita al N.C.E.U. del comune di | Q9: =B9 -> 
B10: al foglio | D10: =IF(DatiGen!D26<>"",DatiGen!D26,"") -> 12 | E10: p.lla | F10: =IF(DatiGen!H26<>"",DatiGen!H26,"") -> 533 | G10: sub. | H10: =IF(DatiGen!K26<>"",DatiGen!K26,"") ->  | I10: Categoria | K10: =IF(DatiGen!M26<>"",DatiGen!M26,"") ->  | L10: , relativamente ai lavori di :
B11: =IF(DatiGen!B5<>"",DatiGen!B5,"==========") -> Sostituzione impianto termico nel comune di XXXXXXXXXX - Via xxxxxxxxxx, 70 al Fg.xx - Mapp.xxx
B12: =IF(DatiGen!B6<>"",DatiGen!B6,"==========") -> ==========
B13: =IF(DatiGen!B7<>"",DatiGen!B7,"==========") -> ==========
B14: eseguiti dalla ditta | F14: =IF(DatiGen!D11<>"",DatiGen!D11,"") -> 
B15: di cui al titolo abilitativo, | F15: =IF(DatiGen!D8<>"",DatiGen!D8,"") -> CILA Prot. N. 000000000 del 29/09/2023 | M15: presentato al Comune di | P15: =Q9 -> 
B16: per l'importo di euro | F16: =Controlli!N60 -> -10 | G16: , di cui al Computo Metrico allegato,
B17: consapevole delle implicazioni penali previste dall’articolo 76 del D.P.R. n. 445/2000 e delle conseguenze di cui all’articolo 21 della legge
B18: n. 241/1990 in caso di dichiarazioni mendaci o false attestazioni, ai sensi dell’articolo 3 del D.P.R. n. 300/1992 e degli articoli 46 e 47 del
B19: citato D.P.R. n. 445/2000, sotto la propria responsabilità,
B20: DICHIARA
B21: • | C21: di essere in possesso della qualifica professionale di | I21: =DatiGen!S5 -> Ingegnere | L21: e di essere iscritto all’Albo professionale :
C22: =CONCATENATE(DatiGen!S12," con il numero di matricola ",DatiGen!Z12,";") -> Ordine degli Ingegneri della provincia di XXXXXXX con il numero di matricola ;
B23: • | C23: di essere dotato di idonea copertura assicurativa ai sensi del D.L. 34/2020 convertito nella L.77/2020, ed in particolare di aver stipulato
C24: la polizza professionale n. A121C526113-LB con scadenza al 26/09/2022 con la compagnia assicurativa Lloyd’s Insurance Company S.A., con massimale pari a euro 500.000,00 , e che la medesima polizza è conforme ai requisiti previsti dal comma 14, del D.L. 34/2020 e s.m.i. | F24: =IF(DatiGen!S14<>"",DatiGen!S14,"") ->  | I24: con scadenza al | L24: =IF(DatiGen!Y14<>"",DatiGen!Y14,"") -> 2025-06-01 | N24: , con la compagnia assicurativa
C25: =IF(DatiGen!S15<>"",DatiGen!S15,"") ->  | L25: con massimale pari a euro | P25: =DatiGen!Y15 -> 1500000
C26: e che la medesima polizza è conforme ai requisiti previsti dal comma 14, del D.L. 34/2020 e s.m.i.;
B27: ATTESTA
B28: i requisiti tecnici sulla base del progetto e dell'effettiva realizzazione;
B29: ASSEVERA
B30: la congruità delle spese sostenute ed effettivamente realizzate con riferimento all’intervento sopra specificato, precisando che la Spesa
B31: Detraibile Ammissibile è pari ad EURO | G31: =IF(Controlli!N61>0,Controlli!N58,Controlli!N60) -> -10 | J31: =IF(Controlli!N61>0,",",".") -> . | K31: =IF(Controlli!N61>0,"rimanendo a Carico Cliente EURO","") ->  | O31: =IF(Controlli!N61>0,Controlli!N61,"") ->  | S31: =IF(Controlli!N61>0,".","") -> 
B32: Ai fini dell'asseverazione della congruità delle spese si è fatto riferimento ai valori massimi per tipologia di intervento determinati con i
B33: criteri previsti dal punto 13, dell’allegato A al Decreto MISE 6 agosto 2020 (c.d. Decreto Requisiti) , emanato in conformità all’art. 119
B34: comma 13, lettera a) DL 34/2020 e s.m.i.
B36: Paese, Data | M36: In Fede
M38: =CONCATENATE("(",E6,")") -> (Ing. )
B39: Allegati: | S39: =CONCATENATE("ACPM Vers.",Versione," ©2022 SIM srl") -> ACPM Vers.2024.1.0 ©2022 SIM srl
B40: - Computo Metrico
B41: - Calcolo Spesa Detraibile Ammissibile
B48: Ai sensi dell’art. 38, D.P.R. 445 del 28 dicembre 2000, la dichiarazione è resa insieme alla fotocopia, non autenticata del documento di identità del dichiarante

Sheet Listino Base
B2: Tariffa | C2: Descrizione Estesa | D2: Descrizione Sintetica | E2: U.M. | F2: Prezzo Un.
B3: 025015a | C3: IMPIANTI DI RISCALDAMENTO CALDAIE A CONDENSAZIONE Generatore termico modulante a condensazione, per installazione murale, per il riscaldamento degli ambienti e predisposto per la produzione sanitaria tramite l'abbinamento ad un accumulo sanitario mono/doppio scambiatore escluso, marcato CE, costituito da: camera di combustione stagna con scambiatore in acciaio inox e alluminio, collettore fumi con raccolta condensa, sifone di scarico, separatore d'aria automatico, valvola di sicurezza 3 bar, ventilatore modulante, circolatore modulante, bruciatore metallico cilindrico a premiscelazione totale modulante a ridotte emissioni inquinanti, valvola servocomandata a tre vie di priorità e sensore di temperatura, rubinetto di riempimento e vaso d'espansione a membrana per circuito riscaldamento, classe NOx6, by-pass automatico, delle seguenti potenzialità, per riscaldamento e produzione acqua calda sanitaria, in opera esclusi i collegamenti elettrici, il collegamento alla canna fumaria, gli accessori per il trattamento acque ed eventuali comandi remoti evoluti, delle seguenti potenzialità: 24 kW | D3: Nuova caldaia da 24 kW | E3: cad | F3: 2269.62
B4: 21.01.25 | C4: IMPIANTI DI RISCALDAMENTO BOLLITORI Bollitore orizzontale o verticale murale, termoelettrico, ad intercapedine, con serbatoio in acciaio inox AISI 316, per produzione di acqua calda sanitaria, T massima di accumulo 60 °C, a circolazione naturale o forzata, completamente coibentato, corredato di termostato e termometro e resistenza elettrica termostatata, della capacità di: 80 l | D4: Accumulo sanitario | E4: cad | F4: 821.47
B5: N.P.001.080 | C5: Fornitura e posa in opera di Condotto di esalazione ad elementi prefabbricati in polipropilene speciale (PPS) | D5: Condotto di scarico a tetto | E5: m | F5: 68.87
B6: 025214c | C6: IMPIANTI DI RISCALDAMENTO RADIATORI IN ACCIAIO Radiatore multicolonna in acciaio, altezza 180 cm, ad elementi componibili preassemblati, verniciati RAL 9010, emissione termica con ΔT 50 °C secondo UNI-EN 442, escluso accessori: a 4 colonne, emissione termica 240 ± 5 % W ad elemento: a 8 elementi | D6: Radiatori Tubolari | E6: cad | F6: 556.06
B7: 025090b | C7: IMPIANTI DI RISCALDAMENTO TUBI IN RAME Tubo di rame ricotto con isolamento in polietilene espanso a cellule chiuse a bassissima densità senza CFC a finitura esterna corrugata colorata, conformi alla norma EN 1057, resistenza al fuoco classe 1, temperatura d'impiego da -30 °C a +95 °C, in opera comprese le sagomature di percorso, le centrature in asse agli attacchi dei corpi scaldanti, eseguiti a mano e/o con l'ausilio di piegatubi: per impianti di acqua potabile, di riscaldamento e di condizionamento: 12 × 1 mm, spessore isolamento 9 mm | D7: Tubi in rame coibentato sottotraccia per riscaldamento | E7: m | F7: 8.65
B8: 015024d | C8: IMPIANTI IDRO-SANITARI E GAS DOMESTICO TUBI IN RAME Tubo in rame sanitario nudo, per distribuzione di acqua calda e fredda ad uso potabile, con raccordi a pressare conformi alla UNI 11065 Classe 1, dotati di O-ring in EPDM nero premontato (con guida cilindrica per innesto sicuro sulla tubazione e by-pass sulla sede dell'O-ring per l'individuazione dei raccordi non pressati, temperatura max di esercizio 110 °C o pressione massima di esercizio 16 bar), tagliato a misura e posto in opera su staffaggi, all'interno di cavedi o in traccia, compresa quota parte di raccorderia, escluso valvolame, pezzi speciali, staffaggi, coibentazione e opere murarie con pressatura dei raccordi eseguita con appositi elettroutensili: 28 × 1 mm | D8: Tubi in rame a vista per riscaldamento | E8: m | F8: 27.53
B9: 025100a | C9: IMPIANTI DI RISCALDAMENTO ISOLANTI IN LANA DI VETRO Isolamento termico delle tubazioni realizzato con coppelle in lana di vetro trattata con resine termoindurenti, temperatura massima di servizio 660 °C, conducibilità termica λ = 0,035 W/mK, classe di reazione al fuoco A1-s1,d0: spessore 20 mm: diametro interno 22 mm | D9: Coibentazione Tubi rame a vista per riscaldamento | E9: m | F9: 11.14
B10: 025110b | C10: IMPIANTI DI RISCALDAMENTO COLLETTORI COMPLANARI Collettore complanare costituito da moduli in ottone stampato con attacchi per adattatore tubi di rame, plastica o multistrato, posto in opera con due saracinesche, due valvole di sfogo aria, cassetta di contenimento in lamiera verniciata RAL 9010, con esclusione delle opere murarie: 3/4"× 16 mm: lunghezza 140 mm, attacchi n. 4 + 4 | D10: Collettore di distribuzione Riscaldamento | E10: cad | F10: 466.67
B11: A25026b | C11: SCAVI, DEMOLIZIONI, RIMOZIONI E TRASPORTI DEMOLIZIONI, TAGLI, CAROTAGGI, PERFORAZIONI Carotaggio eseguito con carotatrici con motore elettrico o ad aria compressa, per prelievo campioni, perforazione di strutture edili, per prove di laboratorio, collaudi, controlli, restauri, incatenamenti, areazioni, deumidificazioni, posa in opera di impianti, pluviali, scarichi: su pietrame calcareo o siliceo: diametro foro 70 ÷ 100 mm | D11: Fori per carotaggi linea gas e riscaldamento | E11: cad | F11: 267.18
B12: 015203c | C12: IMPIANTI IDRO-SANITARI E GAS DOMESTICO TUBI GAS Tubo in rame nudo a norma UNI EN 1057 per installazioni gas secondo UNI 7129:2015, UNI 11528 e UNI 8723, con raccordi a pressare conformi alla UNI 11065 Classe 2, contrassegnati GAS MOP5, dotati di O-ring in HNBR giallo premontato (con guida cilindrica per innesto sicuro sulla tubazione e by-pass sulla sede dell'O-ring per l'individuazione dei raccordi non pressati, temperatura massima 70 °C), tagliato a misura e posto in opera su staffaggi, compresa quota parte di raccorderia, esclusi il valvolame, i pezzi speciali e gli staffaggi con pressatura dei raccordi eseguita con idonei elettroutensili: 22 × 1 mm | D12: Tubo linea gas | E12: m | F12: 19.79
B13: 015212a | C13: IMPIANTI IDRO-SANITARI E GAS DOMESTICO VALVOLE GAS Valvola a sfera in ghisa sferoidale GS-40 omologata gas flangiata, PN 16, in opera completa di bulloni e guarnizioni: diametro 20 mm | D13: Valvole linea gas | E13: cad | F13: 120.89
B14: 015032b | C14: IMPIANTI IDRO-SANITARI E GAS DOMESTICO RIDUTTORI ED AMMORTIZZATORI DI PRESSIONE Riduttore di pressione a membrana con sede compensata attacco filettato con bocchettoni, corpo e calotta in ottone, gruppo filtro intercambiabile, pressione d'ingresso massima 25 bar, pressione a valle regolabile 1,5 ÷ 6 bar, per acqua, aria e gas neutri: senza manometro, dei seguenti diametri: 3/4 | D14: Riduttore di pressione gas | E14: cad | F14: 113.32
B15: A25038b | C15: SCAVI, DEMOLIZIONI, RIMOZIONI E TRASPORTI ESECUZIONE DI TRACCE Tracce nella muratura, eseguite a mano, compresa la chiusura delle tracce e l'avvicinamento del materiale di risulta al luogo di deposito provvisorio, in attesa del trasporto allo scarico: per tracce in muratura di mattoni pieni: della sezione 101 ÷ 225 cmq | D15: Scavo tracce per passaggio tubazioni riscaldamento | E15: m | F15: 30.59

Sheet Decreto MITE

Sheet Allegato A
I52: Costo Max | J52: Rif. | K52: U.M. | L52: DL.34/2020 | M52: Indicazioni
A53: Isolamento Coperture - Esterno | I53: 276 | J53: Superficie | K53: mq. | L53: 50000 | M53: Fornitura dell’isolante termico, del sistema di ancoraggio, tutti i materiali che concorrono alla realizzazione dell’intonaco esterno di copertura dell’isolante, le tegole, etc.
A54: Isolamento Coperture - Interno | I54: 120 | J54: Superficie | K54: mq. | L54: 50000 | M54: Fornitura dell’isolante termico, del sistema di ancoraggio, tutti i materiali che concorrono alla realizzazione dell’intonaco esterno di copertura dell’isolante, le tegole, etc.
A55: Isolamento Coperture - Copertura ventilata | I55: 300 | J55: Superficie | K55: mq. | L55: 50000 | M55: Fornitura dell’isolante termico, del sistema di ancoraggio, tutti i materiali che concorrono alla realizzazione dell’intonaco esterno di copertura dell’isolante, le tegole, etc.
A56: Isolamento pavimenti - Esterno | I56: 144 | J56: Superficie | K56: mq. | L56: 50000 | M56: Fornitura dell’isolante termico, del sistema di ancoraggio, tutti i materiali che concorrono alla realizzazione dell’intonaco esterno di copertura dell’isolante, la pavimentazione (non di pregio), etc.
A57: Isolamento pavimenti - Interno/Terreno | I57: 180 | J57: Superficie | K57: mq. | L57: 50000 | M57: Fornitura dell’isolante termico, del sistema di ancoraggio, tutti i materiali che concorrono alla realizzazione dell’intonaco esterno di copertura dell’isolante, la pavimentazione (non di pregio), etc.
A58: Isolamento pareti perimetrali - Zone A, B e C - Esterno/Diffusa | I58: 180 | J58: Superficie | K58: mq. | L58: 50000 | M58: Fornitura dell’isolante termico, del sistema di ancoraggio, tutti i materiali che concorrono alla realizzazione dell’intonaco esterno di copertura dell’isolante, etc.
A59: Isolamento pareti perimetrali - Zone A, B e C - Interno | I59: 96 | J59: Superficie | K59: mq. | L59: 50000 | M59: Fornitura dell’isolante termico, del sistema di ancoraggio, tutti i materiali che concorrono alla realizzazione dell’intonaco esterno di copertura dell’isolante, etc.
A60: Isolamento pareti perimetrali - Zone A, B e C - Parete Ventilata | I60: 240 | J60: Superficie | K60: mq. | L60: 50000 | M60: Fornitura dell’isolante termico, del sistema di ancoraggio, tutti i materiali che concorrono alla realizzazione dell’intonaco esterno di copertura dell’isolante, etc.
A61: Isolamento pareti perimetrali - Zone D, E ed F - Esterno/Diffusa | I61: 195 | J61: Superficie | K61: mq. | L61: 50000 | M61: Fornitura dell’isolante termico, del sistema di ancoraggio, tutti i materiali che concorrono alla realizzazione dell’intonaco esterno di copertura dell’isolante, etc.
A62: Isolamento pareti perimetrali - Zone D, E ed F - Interno | I62: 104 | J62: Superficie | K62: mq. | L62: 50000 | M62: Fornitura dell’isolante termico, del sistema di ancoraggio, tutti i materiali che concorrono alla realizzazione dell’intonaco esterno di copertura dell’isolante, etc.
A63: Isolamento pareti perimetrali - Zone D, E ed F - Parete Ventilata | I63: 260 | J63: Superficie | K63: mq. | L63: 50000 | M63: Fornitura dell’isolante termico, del sistema di ancoraggio, tutti i materiali che concorrono alla realizzazione dell’intonaco esterno di copertura dell’isolante, etc.
A64: Sostituzione chiusure trasparenti / Infissi - Zone A, B e C - Serramento | I64: 660 | J64: Superficie | K64: mq. | L64: 54545 | M64: Fornitura di infisso, telaio, controtelaio, celetto, cassonetto, tapparella, rullo avvolgibile, avvolgitore, persiane e, ove previsto, componentistica dell’impianto elettrico, etc.
A65: Sostituzione chiusure trasparenti / Infissi - Zone A, B e C - Serramento + chiusura oscurante | I65: 780 | J65: Superficie | K65: mq. | L65: 54545 | M65: Fornitura di infisso, telaio, controtelaio, celetto, cassonetto, tapparella, rullo avvolgibile, avvolgitore, persiane e, ove previsto, componentistica dell’impianto elettrico, etc.
A66: Sostituzione chiusure trasparenti / Infissi - Zone D, E ed F - Serramento | I66: 780 | J66: Superficie | K66: mq. | L66: 54545 | M66: Fornitura di infisso, telaio, controtelaio, celetto, cassonetto, tapparella, rullo avvolgibile, avvolgitore, persiane e, ove previsto, componentistica dell’impianto elettrico, etc.
A67: Sostituzione chiusure trasparenti / Infissi - Zone D, E ed F - Serramento + chiusura oscurante | I67: 900 | J67: Superficie | K67: mq. | L67: 54545 | M67: Fornitura di infisso, telaio, controtelaio, celetto, cassonetto, tapparella, rullo avvolgibile, avvolgitore, persiane e, ove previsto, componentistica dell’impianto elettrico, etc.
A68: Installazione di schermature solari e/o ombreggiamenti mobili | I68: 276 | J68: Superficie | K68: mq. | L68: 54545 | M68: Fornitura della schermatura solare e/o ombreggiante, il sistema di montaggio e, ove previsto, la componentistica dell’impianto elettrico, etc.
A69: Impianti a Collettori Solari - Scoperti | I69: 900 | J69: Superficie | K69: mq. | L69: 54545 | M69: Fornitura del pannello solare, sistema di montaggio, serbatoio di accumulo, componentistica dell’impianto idraulico e, ove previsto, dell’impianto elettrico, i sistemi di pompaggio, etc.
A70: Impianti a Collettori Solari - Piani vetrati | I70: 1200 | J70: Superficie | K70: mq. | L70: 54545 | M70: Fornitura del pannello solare, sistema di montaggio, serbatoio di accumulo, componentistica dell’impianto idraulico e, ove previsto, dell’impianto elettrico, i sistemi di pompaggio, etc.
A71: Impianti a Collettori Solari - Sottovuoto a concentrazione | I71: 1500 | J71: Superficie | K71: mq. | L71: 54545 | M71: Fornitura del pannello solare, sistema di montaggio, serbatoio di accumulo, componentistica dell’impianto idraulico e, ove previsto, dell’impianto elettrico, i sistemi di pompaggio, etc.
A72: Impianti di riscaldamento con caldaie ad acqua a condensazione e/o generatori di aria calda a condensazione Pnom<35kWt | I72: 240 | J72: Potenza nominale | K72: kWt | L72: 30000 | M72: Fornitura della caldaia, canna fumaria e, ove previsto, sistema di termoregolazione evoluti, sistema di pompaggio, sistema di trattamento dell’acqua, componentistica dell’impianto idraulico ed elettrico, compresi serbatoi di accumulo, etc.
A73: Impianti di riscaldamento con caldaie ad acqua a condensazione e/o generatori di aria calda a condensazione Pnom>35kWt | I73: 216 | J73: Potenza nominale | K73: kWt | L73: 30000 | M73: Fornitura della caldaia, canna fumaria e, ove previsto, sistema di termoregolazione evoluti, sistema di pompaggio, sistema di trattamento dell’acqua, componentistica dell’impianto idraulico ed elettrico, compresi serbatoi di accumulo, etc.
A74: Impianti con micro-cogenaratori (Motore endotermico/altro) | I74: 3720 | J74: Potenza nominale | K74: kWe | L74: 90909 | M74: Fornitura del cogeneratore, canna fumaria, componentistica dell’impianto idraulico (compreso i serbatoi di accumulo), elettrico e di adduzione del combustibile, etc.
A75: Impianti con micro-cogenaratori (Celle a combustibile) | I75: 30000 | J75: Potenza nominale | K75: kWe | L75: 90909 | M75: Fornitura del cogeneratore, canna fumaria, componentistica dell’impianto idraulico (compreso i serbatoi di accumulo), elettrico e di adduzione del combustibile, etc.
A76: Impianti con Pompe di Calore (a compressione di vapore o ad assorbimento) - aria/aria | I76: 720 | J76: Potenza nominale | K76: kWt | L76: 30000 | M76: Fornitura della pompa di calore, la componentistica comprensiva del circuito del gas frigorigeno, dell’impianto idraulico o aeraulico (compreso i serbatoi di accumulo), elettrico e, ove previsto, di adduzione del gas, etc.
A77: Impianti con Pompe di Calore (a compressione di vapore o ad assorbimento) - altro | I77: 1560 | J77: Potenza nominale | K77: kWt | L77: 30000 | M77: Fornitura della pompa di calore, la componentistica comprensiva del circuito del gas frigorigeno, dell’impianto idraulico o aeraulico (compreso i serbatoi di accumulo), elettrico e, ove previsto, di adduzione del gas, etc.
A78: Impianti con Pompe di Calore (a gas) | I78: 1200 | J78: Potenza nominale | K78: kWt | L78: 30000 | M78: Fornitura della pompa di calore, la componentistica comprensiva del circuito del gas frigorigeno, dell’impianto idraulico o aeraulico (compreso i serbatoi di accumulo), elettrico e, ove previsto, di adduzione del gas, etc.
A79: Impianti con Pompe di Calore (geotermiche) | I79: 2280 | J79: Potenza nominale | K79: kWt | L79: 30000 | M79: Fornitura della pompa di calore, la componentistica comprensiva del circuito del gas frigorigeno, dell’impianto idraulico o aeraulico (compreso i serbatoi di accumulo), elettrico e, ove previsto, di adduzione del gas, etc.
A80: Impianti con sistemi ibridi | I80: 1860 | J80: Potenza nominale | K80: kWt | L80: 30000 | M80: Fornitura della caldaia e della pompa di calore, canna fumaria e, ove previsto, sistema di termoregolazione evoluti, sistema di pompaggio, sistema di trattamento dell’acqua, componentistica dell’impianto idraulico ed elettrico, compresi serbatoi di accumulo, circuito del gas frigorigeno, etc.
A81: Impianti con generatori di calore alimentati a biomasse combustibili (Pnom < 35kWt) | I81: 420 | J81: Potenza nominale | K81: kWt | L81: 27272 | M81: Fornitura della caldaia, canna fumaria, sistema di abbattimento delle emissioni in atmosfera, sistema di stoccaggio della biomassa, sistema di caricamento della biomassa e, ove previsto, sistema di termoregolazione evoluti, sistema di pompaggio, sistema di trattamento dell’acqua, componentistica dell’impianto idraulico ed elettrico, compresi serbatoi di accumulo, etc.
A82: Impianti con generatori di calore alimentati a biomasse combustibili (Pnom > 35kWt) | I82: 540 | J82: Potenza nominale | K82: kWt | L82: 27272 | M82: Fornitura della caldaia, canna fumaria, sistema di abbattimento delle emissioni in atmosfera, sistema di stoccaggio della biomassa, sistema di caricamento della biomassa e, ove previsto, sistema di termoregolazione evoluti, sistema di pompaggio, sistema di trattamento dell’acqua, componentistica dell’impianto idraulico ed elettrico, compresi serbatoi di accumulo, etc.
A83: Impianti di produzione di acqua calda sanitaria con Scaldacqua a pompa di calore (fino a 150 litri di accumulo) | I83: 1200 | J83: Potenza nominale | K83: cad. | L83: 27272 | M83: Fornitura dello scaldacqua a pompa di calore, dell’impianto elettrico ed idraulico, etc.
A84: Impianti di produzione di acqua calda sanitaria con Scaldacqua a pompa di calore (oltre 150 litri di accumulo) | I84: 1500 | J84: Potenza nominale | K84: cad. | L84: 27272 | M84: Fornitura dello scaldacqua a pompa di calore, dell’impianto elettrico ed idraulico, etc.
A85: Installazione di tecnologie di building automation | I85: 60 | J85: Superficie | K85: mq. | L85: 13636 | M85: Fornitura del sistema e la componentistica dell’impianto idraulico ed elettrico, etc

Sheet FAQ Enea e MITE
